bitfinex-derivatives/quotes_SOLF0:USTF0_20260108
["timestamp","ask_amount","ask_price","bid_price","bid_amount"]
[1767884654185,0.33482514,133.58,133.49,6.7497]
[1767884654373,0.33482514,133.58,133.47,88.5]
[1767884654572,0.33482514,133.58,133.47,193.5153]
[1767884654776,6.7462,133.57,133.5,6.7495]
[1767884654981,0.33482514,133.58,133.47,88.5]
[1767884655386,0.33482514,133.61,133.49,105.0007]
[1767884655682,0.33482514,133.61,133.49,193.5007]
[1767884655889,0.33482514,133.61,133.49,105.0007]
[1767884656080,6.7447,133.6,133.5,88.5]
[1767884656282,0.33482514,133.64,133.52,104.9769]
[1767884656587,0.33482514,133.64,133.52,193.4769]
[1767884656783,7.07772514,133.64,133.55,6.747]
[1767884656984,7.07772514,133.64,133.53,104.9684]
[1767884657190,105.20182514,133.67,133.54,104.962]
[1767884657391,5.48282028,133.66,133.58,6.7452]
[1767884657591,7.07612514,133.67,133.58,6.7452]
[1767884658091,7.07612514,133.67,133.59,6.7448]
[1767884658493,95.2604,133.69,133.57,104.9367]
[1767884658693,95.2604,133.69,133.61,6.7438]
[1767884658993,0.33482514,133.68,133.58,88.5]
[1767884659292,0.33482514,133.67,133.56,104.947]
[1767884659486,0.33482514,133.67,133.56,88.5]
[1767884659994,6.7418,133.66,133.58,6.7455]
[1767884660880,6.7422,133.65,133.56,95.2462]
[1767884661189,0.33482514,133.66,133.56,95.2462]
[1767884661384,6.7433,133.63,133.55,6.747]
[1767884662094,0.33482514,133.63,133.53,6.7477]
[1767884662589,7.07872514,133.62,133.53,6.7477]
[1767884662994,0.33482514,133.62,133.53,6.7477]
[1767884663195,193.3957,133.63,133.52,193.4718]
[1767884663196,6.7434,133.63,133.52,193.4718]
[1767884663399,88.83482514,133.65,133.53,104.9708]
[1767884663792,88.83482514,133.65,133.53,193.4508]
[1767884664695,6.7426,133.64,133.56,6.7465]
[1767884665197,6.7426,133.64,133.57,6.7459]
[1767884665398,88.5,133.65,133.55,104.9508]
[1767884665786,6.7418,133.66,133.55,104.9508]
[1767884665996,0.33482514,133.64,133.53,88.48]
[1767884666895,6.7436,133.62,133.53,95.2277]
[1767884667092,6.7436,133.62,133.53,88.48]
[1767884667396,6.7441,133.61,133.54,6.7475]
[1767884668100,6.7447,133.6,133.52,6.7482]
[1767884668597,7.07952514,133.6,133.52,6.7482]
[1767884670091,6.7452,133.59,133.52,6.7482]
[1767884670395,88.5,133.62,133.53,6.748]
[1767884670604,0.33482514,133.63,133.51,104.9842]
[1767884670892,7.64925972,133.65,133.54,6.7472]
[1767884670893,0.33482514,133.64,133.54,6.7472]
[1767884671301,0.33482514,133.62,133.52,88.48]
[1767884671606,0.33482514,133.62,133.53,6.748]
[1767884671784,7.07882514,133.62,133.53,6.748]
[1767884671984,0.33482514,133.62,133.53,6.748]
[1767884672392,6.7446,133.6,133.53,6.748]
[1767884673999,0.32365218,133.58,133.5,88.48]
[1767884674191,0.32365218,133.55,133.46,17.07803005]
[1767884674701,0.32365218,133.53,133.46,17.07803005]
[1767884674994,0.32365218,133.52,133.46,17.07803005]
[1767884675400,6.7492,133.51,133.46,17.07803005]
[1767884676793,6.7492,133.51,133.38,136.81499123]
[1767884676794,0.32365218,133.5,133.39,0.08389474]
[1767884677096,0.32365218,133.49,133.39,0.08389474]
[1767884677295,95.57465218,133.48,133.39,0.08389474]
[1767884678502,95.251,133.48,133.39,0.08389474]
[1767884678695,6.7499,133.5,133.39,0.08389474]
[1767884679001,88.84365218,133.51,133.41,7.06871344]
[1767884679296,193.83445218,133.51,133.41,0.31481344]
[1767884679700,0.32365218,133.49,133.41,0.31481344]
[1767884680000,88.84365218,133.49,133.41,0.31481344]
[1767884680397,6.7513,133.47,133.38,88.81481344]
[1767884680900,6.7513,133.47,133.39,7.06981344]
[1767884681102,88.54,133.48,133.39,0.31481344]
[1767884682796,88.86365218,133.48,133.39,0.31481344]
[1767884683189,0.32365218,133.47,133.36,7.07131344]
[1767884683390,0.32365218,133.45,133.31,105.1395]
[1767884683589,88.54,133.44,133.33,0.31481344]
[1767884684200,0.32365218,133.45,133.35,7.07181344]
[1767884684504,0.32365218,133.48,133.38,0.31481344]
[1767884685000,0.32365218,133.51,133.41,0.31481344]
[1767884685300,88.88365218,133.54,133.45,105.34801344]
[1767884685508,6.7469,133.56,133.48,6.7504]
[1767884685702,6.7469,133.56,133.46,0.31481344]
[1767884685894,104.9205,133.6,133.46,0.31481344]
[1767884685895,5.03398337,133.61,133.49,0.31481344]
[1767884686103,6.7454,133.59,133.49,7.06461344]
[1767884686398,0.32365218,133.6,133.49,7.06461344]
[1767884687005,105.24435218,133.6,133.49,7.06461344]
[1767884687300,105.24435218,133.6,133.47,6.7508]
[1767884687301,0.32365218,133.57,133.47,6.7508]
[1767884687604,6.7469,133.56,133.47,6.7508]
[1767884687804,0.32365218,133.57,133.47,6.7508]
[1767884687997,0.32365218,133.55,133.46,0.31481344]
[1767884688401,6.7477,133.54,133.46,0.31481344]
[1767884689489,7.07085218,133.55,133.46,0.31481344]
[1767884689700,88.56,133.58,133.47,0.31481344]
[1767884689999,88.56,133.58,133.48,0.31481344]
[1767884690198,95.3057,133.58,133.5,6.7494]
[1767884690605,95.3057,133.58,133.51,6.749]
[1767884690606,88.56,133.58,133.51,6.749]
[1767884690799,0.32365218,133.59,133.51,6.749]
[1767884691097,6.7448,133.6,133.5,0.31481344]
[1767884691996,0.32365218,133.59,133.47,105.32641344]
[1767884692198,0.32365218,133.58,133.47,0.31481344]
[1767884692401,0.32365218,133.57,133.47,0.31481344]
[1767884692603,6.7474,133.55,133.47,0.31481344]
[1767884692811,7.07105218,133.55,133.46,6.7515]
[1767884693906,6.7478,133.54,133.46,6.7515]
[1767884694601,6.7482,133.53,133.44,7.06711344]
[1767884695307,7.07105218,133.55,133.45,0.31481344]
[1767884695803,6.7478,133.54,133.46,6.7515]
[1767884697512,6.7484,133.53,133.45,0.31481344]
[1767884698705,6.7474,133.55,133.45,0.31481344]
[1767884698906,88.56,133.56,133.46,0.31481344]
[1767884699302,6.7462,133.57,133.49,6.7498]
[1767884699507,104.9024,133.62,133.5,0.31481344]
[1767884699508,105.22605218,133.62,133.5,0.31481344]
[1767884699707,0.32365218,133.62,133.51,0.31481344]
[1767884700304,0.32365218,133.61,133.51,0.31481344]
[1767884701108,88.56,133.62,133.52,104.9772]
[1767884701314,0.32365218,133.67,133.56,0.31481344]
[1767884701505,105.18875218,133.67,133.56,0.31481344]
[1767884701708,0.32365218,133.65,133.56,0.31481344]
[1767884701902,0.32365218,133.63,133.53,0.31481344]
[1767884702212,0.32365218,133.61,133.5,88.85481344]
[1767884702515,193.76276345,133.64,133.52,0.32278007]
[1767884702711,6.7442,133.61,133.52,7.07098007]
[1767884702907,0.33506345,133.59,133.49,0.32278007]
[1767884703306,0.33506345,133.55,133.45,0.32278007]
[1767884703714,6.7487,133.52,133.45,0.32278007]
[1767884704204,0.33506345,133.53,133.41,88.84278007]
[1767884704404,0.33506345,133.53,133.42,0.32278007]
[1767884704610,105.31496345,133.52,133.42,0.32278007]
[1767884704924,105.31496345,133.52,133.39,105.0763]
[1767884704925,6.7508,133.48,133.4,6.7543]
[1767884705222,0.33506345,133.51,133.4,0.32278007]
[1767884705413,0.33506345,133.5,133.4,7.07728007]
[1767884705614,0.33506345,133.5,133.4,0.32278007]
[1767884706624,0.33506345,133.5,133.38,105.0857]
[1767884706913,0.33506345,133.5,133.38,0.32278007]
[1767884707114,6.7514,133.47,133.38,0.32278007]
[1767884707310,198.24083119,133.51,133.4,0.32278007]
[1767884707311,4.71033119,133.51,133.4,0.32278007]
[1767884707511,0.33506345,133.52,133.4,105.067]
[1767884707718,6.748,133.54,133.45,7.07478007]
[1767884707912,88.54,133.55,133.45,0.32278007]
[1767884708317,6.7477,133.54,133.45,7.07458007]
[1767884708709,0.33506345,133.54,133.41,88.86278007]
[1767884708910,0.33506345,133.54,133.42,0.32278007]
[1767884709117,0.33506345,133.52,133.42,0.32278007]
[1767884709318,0.33506345,133.51,133.42,0.32278007]
[1767884710031,0.33506345,133.49,133.38,88.86278007]
[1767884710209,0.33506345,133.48,133.36,105.42378007]
[1767884710415,88.89506345,133.51,133.4,0.32278007]
[1767884710617,0.33506345,133.51,133.4,0.32278007]
[1767884711023,0.33506345,133.51,133.37,105.40316229]
[1767884711024,0.33409611,133.49,133.37,105.40316229]
[1767884711223,0.33409611,133.49,133.38,0.30746229]
[1767884711418,6.7515,133.47,133.38,0.30746229]
[1767884711626,0.33409611,133.48,133.38,0.30746229]
[1767884712219,7.08509611,133.48,133.39,6.755]
[1767884713123,7.08509611,133.48,133.39,7.06246229]
[1767884713325,6.7499,133.5,133.39,105.38576229]
[1767884713621,93.6044273,133.51,133.38,105.0853]
[1767884713622,88.56,133.51,133.43,105.35646229]
[1767884713829,0.33409611,133.54,133.44,0.30746229]
[1767884715221,7.08189611,133.54,133.46,6.7514]
[1767884716524,6.7482,133.53,133.44,7.05976229]
[1767884716925,0.33409611,133.54,133.45,0.30746229]
[1767884717126,0.33409611,133.58,133.46,0.30746229]
[1767884717424,94.35904647,133.57,133.46,0.30746229]
[1767884717617,0.33409611,133.57,133.46,0.30746229]
[1767884717821,0.33409611,133.55,133.44,88.56]
[1767884718415,0.33409611,133.55,133.44,88.86746229]
[1767884718820,0.33409611,133.55,133.45,0.30746229]
[1767884720229,6.7477,133.54,133.45,0.30746229]
[1767884720726,6.7482,133.53,133.45,7.05926229]
[1767884721126,0.33409611,133.53,133.42,0.30746229]
[1767884721323,6.748,133.54,133.46,6.7515]
[1767884721925,6.748,133.54,133.47,6.751]
[1767884724334,6.748,133.54,133.46,0.30746229]
[1767884724533,0.33409611,133.55,133.46,0.30746229]
[1767884724534,6.7482,133.53,133.46,0.30746229]
[1767884725230,7.08159611,133.55,133.46,7.05906229]
[1767884725534,0.33409611,133.55,133.46,7.05906229]
[1767884726034,0.33409611,133.55,133.46,0.30746229]
[1767884726232,104.9349,133.58,133.46,0.30746229]
[1767884726233,88.89409611,133.58,133.46,0.30746229]
[1767884726432,5.47020263,133.57,133.49,6.75]
[1767884726731,0.33409611,133.61,133.49,0.30746229]
[1767884726933,6.7447,133.6,133.53,6.748]
[1767884727328,0.33409611,133.64,133.53,0.30746229]
[1767884727531,0.33409611,133.64,133.53,105.27476229]
[1767884727532,5.47125521,133.63,133.53,105.27476229]
[1767884727834,124.0,133.7,133.56,105.25456229]
[1767884727835,0.33409611,133.68,133.56,105.25456229]
[1767884728040,7.07479611,133.68,133.59,7.05246229]
[1767884728435,0.33409611,133.67,133.56,0.30746229]
[1767884728736,0.33409611,133.64,133.52,0.30746229]
[1767884728938,0.33409611,133.64,133.53,0.30746229]
[1767884729126,0.33409611,133.64,133.54,0.30746229]
[1767884729323,0.33409611,133.64,133.56,6.7465]
[1767884729829,7.07679611,133.64,133.56,6.7465]
[1767884730628,6.7432,133.63,133.54,7.05466229]
[1767884730938,0.33409611,133.64,133.54,7.05466229]
[1767884730939,0.33409611,133.64,133.54,0.30746229]
[1767884731138,0.33409611,133.64,133.56,6.7464]
[1767884731345,0.33409611,133.67,133.57,104.9346]
[1767884731636,0.33409611,133.7,133.58,0.30746229]
[1767884731833,7.07399611,133.7,133.61,6.7439]
[1767884732027,0.33409611,133.7,133.61,6.7439]
[1767884732227,0.33409611,133.7,133.59,0.31861228]
[1767884732449,0.33409611,133.7,133.61,0.31861228]
[1767884733341,105.12403498,133.77,133.65,0.31861228]
[1767884733640,88.85663498,133.76,133.65,0.31861228]
[1767884733838,6.7372,133.75,133.65,0.31861228]
[1767884734034,0.33663498,133.8,133.68,0.31861228]
[1767884734233,88.85663498,133.8,133.68,0.31861228]
[1767884734442,6.7352,133.79,133.69,6.7397]
[1767884734651,0.33663498,133.83,133.71,0.31861228]
[1767884734841,0.33663498,133.83,133.73,0.31861228]
[1767884735032,7.06993498,133.83,133.73,7.05631228]
[1767884735941,0.33663498,133.83,133.74,6.7372]
[1767884736350,0.33663498,133.83,133.73,0.31861228]
[1767884736835,0.33663498,133.83,133.7,104.8346]
[1767884736836,7.07143498,133.8,133.7,0.31861228]
[1767884737040,0.33663498,133.83,133.71,0.31861228]
[1767884737253,88.83663498,133.83,133.72,0.31861228]
[1767884737439,0.33663498,133.83,133.73,0.31861228]
[1767884738548,0.33663498,133.83,133.73,7.05611228]
[1767884738749,0.33663498,133.87,133.76,0.31861228]
[1767884739351,7.06793498,133.87,133.76,7.05481228]
[1767884739540,0.33663498,133.87,133.77,0.31861228]
[1767884740334,6.7317,133.86,133.77,0.31861228]
[1767884741647,0.33663498,133.87,133.77,0.31861228]
[1767884742349,0.33663498,133.87,133.77,7.05421228]
[1767884742751,6.7307,133.88,133.79,0.31861228]
[1767884742945,7.06623498,133.9,133.79,0.31861228]
[1767884743254,0.33663498,133.93,133.83,0.31861228]
[1767884743948,17.07803005,133.94,133.85,0.31861228]
[1767884744247,17.07803005,133.94,133.86,0.31861228]
[1767884744646,17.07803005,133.94,133.86,7.05011228]
[1767884745238,88.75663498,134.0,133.89,0.31861228]
[1767884745751,0.33663498,133.99,133.89,0.31861228]
[1767884746839,0.33663498,133.99,133.89,105.00351228]
[1767884747250,0.33663498,133.99,133.89,0.31861228]
[1767884748050,0.33663498,133.99,133.9,104.76122856]
[1767884748260,0.33663498,134.01,133.9,0.08382856]
[1767884748452,0.33663498,134.01,133.91,6.7286]
[1767884748453,7.06073498,134.01,133.91,6.7286]
[1767884748756,0.33663498,134.03,133.93,0.08382856]
[1767884749053,7.05983498,134.03,133.93,6.81142856]
[1767884749257,0.33663498,134.03,133.93,0.08382856]
[1767884749453,0.33663498,134.03,133.93,104.73822856]
[1767884749654,0.33663498,134.03,133.95,6.7267]
[1767884750050,0.33663498,134.03,133.93,6.81152856]
[1767884750250,0.33663498,134.03,133.9,88.44382856]
[1767884750546,0.33663498,134.02,133.92,104.74462856]
[1767884751259,0.33663498,134.01,133.92,6.81202856]
[1767884751664,0.33663498,134.01,133.89,0.08382856]
[1767884751665,0.33663498,133.99,133.89,0.08382856]
[1767884751959,0.33663498,133.97,133.86,193.11182856]
[1767884752146,0.33663498,133.97,133.86,88.40382856]
[1767884752345,7.06283498,133.97,133.86,0.08382856]
[1767884752555,0.33663498,133.96,133.86,0.08382856]
[1767884752746,0.33663498,133.96,133.86,104.79512856]
[1767884752948,0.33663498,133.96,133.87,0.08382856]
[1767884753350,0.33663498,133.96,133.88,6.7301]
[1767884753754,0.33663498,133.99,133.88,0.08382856]
[1767884753958,88.32,134.0,133.91,0.08382856]
[1767884754156,88.65663498,134.02,133.91,0.08382856]
[1767884754460,0.33663498,134.02,133.93,0.08382856]
[1767884754856,88.32,134.05,133.95,104.72312856]
[1767884754857,0.33663498,134.05,133.95,104.72312856]
[1767884755054,0.33663498,134.05,133.96,0.08382856]
[1767884756960,6.7211,134.07,133.98,6.7252]
[1767884757162,0.33663498,134.08,133.98,0.08382856]
[1767884757355,88.63663498,134.08,133.98,0.08382856]
[1767884757658,0.33663498,134.07,133.98,0.08382856]
[1767884757853,7.05773498,134.07,133.98,0.08382856]
[1767884758056,0.33663498,134.06,133.95,0.08382856]
[1767884758361,7.05873498,134.05,133.96,6.7262]
[1767884758555,0.33663498,134.05,133.95,0.08382856]
[1767884758761,88.61663498,134.05,133.95,0.08382856]
[1767884759159,95.33883498,134.05,133.96,6.7262]
[1767884759757,0.33663498,134.04,133.96,6.7262]
[1767884760457,88.26,134.05,133.98,6.7251]
[1767884760650,7.05773498,134.07,133.98,0.08382856]
[1767884760651,0.33663498,134.07,133.98,0.08382856]
[1767884760853,0.33663498,134.14,134.03,0.08382856]
[1767884761052,0.33663498,134.18,134.05,104.64122856]
[1767884761261,0.33663498,134.17,134.06,104.5552]
[1767884761456,88.26,134.16,134.06,104.5552]
[1767884761656,0.33663498,134.17,134.07,104.5476]
[1767884761859,0.33663498,134.21,134.09,104.61622856]
[1767884762061,0.33663498,134.21,134.1,104.60822856]
[1767884762263,88.59663498,134.21,134.11,0.08210371]
[1767884762456,0.32345184,134.2,134.09,104.5301]
[1767884762760,88.58345184,134.2,134.08,0.08210371]
[1767884762967,0.32345184,134.19,134.08,0.08210371]
[1767884763165,0.32345184,134.22,134.14,104.4914]
[1767884763461,88.24,134.25,134.15,104.4856]
[1767884763661,0.32345184,134.27,134.16,104.4772]
[1767884763662,88.24,134.26,134.16,104.4772]
[1767884763861,16.86321492,134.29,134.19,104.4544]
[1767884764061,13.07155292,134.29,134.22,104.4304]
[1767884764264,104.3119,134.38,134.25,104.4065]
[1767884764457,0.32345184,134.39,134.26,104.398]
[1767884764768,0.32345184,134.39,134.27,111.1024]
[1767884764967,0.32345184,134.39,134.29,104.3719]
[1767884765165,0.32345184,134.39,134.28,104.3841]
[1767884765360,0.32345184,134.39,134.29,104.3739]
[1767884765567,0.32345184,134.39,134.3,104.3662]
[1767884765868,0.32345184,134.39,134.33,104.3431]
[1767884766167,0.32721202,134.43,134.32,104.3534]
[1767884766368,0.32721202,134.42,134.29,192.5739]
[1767884766569,0.32721202,134.4,134.29,104.3739]
[1767884766769,0.32721202,134.39,134.27,104.3883]
[1767884767070,0.32721202,134.38,134.27,111.0992]
[1767884767366,0.32721202,134.34,134.21,104.4347]
[1767884767568,0.32721202,134.34,134.16,208.9448]
[1767884767569,0.32721202,134.31,134.18,104.4615]
[1767884767769,0.32721202,134.31,134.17,104.4659]
[1767884767770,104.366,134.31,134.17,104.4659]
[1767884767966,0.32721202,134.3,134.19,111.1667]
[1767884768170,0.32721202,134.29,134.18,104.4608]
[1767884768374,88.48721202,134.29,134.17,104.4659]
[1767884768561,0.32721202,134.28,134.21,104.4356]
[1767884768767,0.32721202,134.31,134.2,104.447]
[1767884768969,0.32721202,134.31,134.18,104.4599]
[1767884769263,0.32721202,134.31,134.14,192.6302]
[1767884769264,0.32721202,134.27,134.14,192.6302]
[1767884769473,0.32721202,134.26,134.14,88.14]
[1767884769670,0.32721202,134.25,134.14,88.14]
[1767884770073,104.3479,134.33,134.17,104.4675]
[1767884770268,0.32721202,134.3,134.21,104.4383]
[1767884770572,88.14,134.33,134.21,104.4383]
[1767884770767,0.32721202,134.33,134.21,104.4383]
[1767884771168,0.32721202,134.33,134.2,88.14]
[1767884771169,0.32721202,134.3,134.2,88.14]
[1767884771363,0.32721202,134.28,134.17,88.12]
[1767884771559,0.32721202,134.25,134.13,88.12]
[1767884771760,0.32721202,134.25,134.12,199.3451]
[1767884771961,88.46721202,134.25,134.12,199.3451]
[1767884772473,88.44721202,134.25,134.13,111.2165]
[1767884772772,0.32721202,134.25,134.16,104.4771]
[1767884773162,0.32721202,134.29,134.17,104.4672]
[1767884773368,0.32721202,134.33,134.2,104.447]
[1767884773567,88.44721202,134.33,134.22,104.4312]
[1767884773763,0.32721202,134.37,134.25,104.4056]
[1767884774069,111.32411202,134.4,134.27,104.3874]
[1767884774270,0.32721202,134.4,134.29,104.3735]
[1767884774568,88.12,134.42,134.31,104.3598]
[1767884775174,88.44721202,134.44,134.31,104.3598]
[1767884775370,88.42721202,134.44,134.32,111.0608]
[1767884775571,43.73752606,134.44,134.32,221.27195671]
[1767884775767,43.73752606,134.44,134.32,199.1608]
[1767884776068,43.73752606,134.44,134.32,94.808]
[1767884776273,43.73752606,134.44,134.32,88.1]
[1767884776274,147.99862606,134.44,134.32,88.1]
[1767884776576,50.44032606,134.44,134.32,88.1]
[1767884776871,6.7034,134.42,134.32,88.1]
[1767884777175,104.2852,134.41,134.29,88.08]
[1767884777572,0.32721202,134.39,134.27,6.7109]
[1767884777877,0.32721202,134.39,134.23,126.8099]
[1767884777878,0.32721202,134.37,134.23,192.4999]
[1767884778376,0.32721202,134.36,134.24,104.4149]
[1767884778576,0.32721202,134.36,134.23,192.4999]
[1767884778870,0.32721202,134.36,134.24,6.712]
[1767884779174,0.32721202,134.36,134.24,111.124]
[1767884779370,0.32721202,134.34,134.23,88.08]
[1767884779576,0.32721202,134.34,134.24,104.4145]
[1767884779769,0.32721202,134.38,134.27,104.3924]
[1767884779971,0.32721202,134.38,134.29,111.0866]
[1767884780174,0.32721202,134.42,134.29,111.0866]
[1767884780475,0.32721202,134.4,134.31,111.0678]
[1767884780679,0.32721202,134.4,134.31,104.3592]
[1767884780877,0.32721202,134.44,134.34,104.3381]
[1767884781072,0.32721202,134.44,134.35,104.3298]
[1767884782072,0.32721202,134.44,134.36,6.706]
[1767884782277,0.32721202,134.44,134.34,104.3381]
[1767884782679,0.32721202,134.44,134.32,104.3511]
[1767884783078,0.32721202,134.44,134.33,104.3455]
[1767884783275,0.32721202,134.44,134.36,104.3208]
[1767884783470,0.32721202,134.47,134.34,104.3377]
[1767884783676,0.32721202,134.44,134.34,6.7073]
[1767884783978,0.32721202,134.44,134.31,88.04]
[1767884783979,0.32721202,134.43,134.31,88.04]
[1767884784183,0.32721202,134.42,134.31,88.04]
[1767884784388,0.32721202,134.4,134.31,88.04]
[1767884784581,0.32721202,134.4,134.27,192.4111]
[1767884784780,0.32721202,134.38,134.27,88.02]
[1767884785078,0.32721202,134.38,134.24,104.4132]
[1767884785079,0.32721202,134.37,134.25,104.4074]
[1767884785471,0.32721202,134.36,134.24,94.7323]
[1767884785672,0.32721202,134.36,134.24,192.4352]
[1767884785875,0.32721202,134.36,134.25,104.4079]
[1767884786076,0.32721202,134.36,134.26,6.7111]
[1767884786482,0.32721202,134.35,134.24,88.02]
[1767884786679,0.32721202,134.44,134.32,104.3496]
[1767884786881,0.32721202,134.44,134.31,192.3806]
[1767884787077,0.32721202,134.44,134.36,104.3194]
[1767884787285,0.32721202,134.44,134.33,104.3416]
[1767884787585,0.32721202,134.44,134.32,104.3522]
[1767884787785,0.32721202,134.44,134.33,6.7077]
[1767884787987,0.32721202,134.44,134.3,192.3848]
[1767884788188,0.32721202,134.44,134.31,104.3599]
[1767884789185,6.7032,134.43,134.32,6.7083]
[1767884789386,0.32721202,134.44,134.3,88.02]
[1767884789688,192.2603,134.47,134.3,88.02]
[1767884789689,0.32721202,134.42,134.32,104.3485]
[1767884790081,104.2083,134.51,134.34,104.3379]
[1767884790082,0.32721202,134.46,134.34,104.3379]
[1767884790291,0.32721202,134.46,134.35,6.7067]
[1767884790481,0.32721202,134.46,134.36,104.3224]
[1767884790884,0.32721202,134.46,134.38,6.7051]
[1767884792189,0.32721202,134.46,134.36,6.7061]
[1767884792382,0.32721202,134.46,134.32,104.3485]
[1767884792588,0.30660601,134.43,134.32,104.3534]
[1767884792891,0.30660601,134.46,134.35,104.3292]
[1767884793091,0.30660601,134.46,134.37,6.7056]
[1767884793383,0.30660601,134.46,134.33,104.3447]
[1767884793585,0.30660601,134.46,134.32,88.0]
[1767884793788,0.30660601,134.45,134.34,6.7072]
[1767884794386,0.30660601,134.44,134.32,94.7082]
[1767884794592,0.30660601,134.44,134.32,88.0]
[1767884795194,0.30660601,134.42,134.27,104.3883]
[1767884795388,0.30660601,134.4,134.28,87.98]
[1767884795589,0.30660601,134.39,134.28,87.98]
[1767884795791,0.30660601,134.36,134.25,6.7117]
[1767884795990,0.30660601,134.35,134.2,104.4436]
[1767884796192,0.30660601,134.35,134.2,192.4236]
[1767884796394,6.7077,134.34,134.22,104.4312]
[1767884796688,7.01430601,134.34,134.22,104.4312]
[1767884797286,0.30660601,134.34,134.2,192.4236]
[1767884797493,0.30660601,134.34,134.22,104.431]
[1767884798295,0.30660601,134.38,134.25,104.4051]
[1767884798502,0.30660601,134.38,134.26,104.3996]
[1767884798702,0.30660601,134.38,134.26,87.98]
[1767884799200,124.0,134.4,134.29,104.377]
[1767884799395,0.30660601,134.42,134.29,104.377]
[1767884799589,104.59110601,134.41,134.3,6.7091]
[1767884799795,0.30660601,134.41,134.3,104.367]
[1767884800101,104.2654,134.44,134.3,104.367]
[1767884800290,88.30660601,134.45,134.32,104.3502]
[1767884800492,104.56390601,134.45,134.31,104.3603]
[1767884800893,6.7041,134.41,134.32,6.7081]
[1767884801096,6.7041,134.41,134.31,87.98]
[1767884801097,0.30660601,134.41,134.31,87.98]
[1767884801502,6.7051,134.39,134.3,6.7093]
[1767884801707,0.30660601,134.41,134.29,104.3757]
[1767884802298,0.30660601,134.41,134.29,192.3557]
[1767884802499,0.30660601,134.41,134.31,104.3584]
[1767884802693,88.0,134.44,134.3,104.3685]
[1767884802694,88.30660601,134.44,134.3,104.3685]
[1767884802898,0.30660601,134.43,134.29,87.98]
[1767884803100,88.30660601,134.44,134.3,104.3682]
[1767884803504,88.30660601,134.44,134.31,104.3594]
[1767884803703,0.30660601,134.43,134.31,104.3594]
[1767884803904,7.00970601,134.43,134.33,6.7076]
[1767884804201,0.30660601,134.43,134.29,192.3526]
[1767884804405,0.30660601,134.42,134.27,104.3881]
[1767884804607,0.30660601,134.39,134.29,6.7096]
[1767884805602,7.01180601,134.39,134.29,6.7096]
[1767884806401,7.01220601,134.38,134.27,94.6907]
[1767884806595,0.30660601,134.38,134.27,94.6907]
[1767884806796,0.30660601,134.37,134.27,87.98]
[1767884806997,0.30660601,134.35,134.25,6.7115]
[1767884807204,0.30660601,134.35,134.22,87.98]
[1767884807401,0.30660601,134.32,134.22,94.693]
[1767884807704,0.30660601,134.32,134.22,87.98]
[1767884808104,6.7096,134.3,134.22,94.6932]
[1767884808303,6.7096,134.3,134.22,6.7132]
[1767884808505,0.30660601,134.32,134.22,6.7132]
[1767884808906,0.30660601,134.32,134.19,104.4502]
[1767884809708,0.30660601,134.32,134.21,104.4389]
[1767884809911,104.3611,134.32,134.19,87.98]
[1767884810212,0.30660601,134.31,134.19,87.98]
[1767884810707,0.30660601,134.27,134.14,192.4903]
[1767884811100,0.30660601,134.27,134.17,104.4697]
[1767884811512,0.30660601,134.27,134.16,104.4773]
[1767884811714,0.30660601,134.27,134.16,104.4774]
[1767884812315,0.30660601,134.27,134.16,104.4777]
[1767884812502,104.67550601,134.31,134.16,104.4777]
[1767884812703,104.67550601,134.31,134.16,192.4777]
[1767884812907,7.01570601,134.31,134.2,6.7142]
[1767884813107,0.30660601,134.31,134.2,6.7142]
[1767884813727,108.99064472,134.34,134.21,6.7136]
[1767884813728,104.64680601,134.34,134.21,6.7136]
[1767884813911,104.64680601,134.34,134.2,4.65044472]
[1767884814217,104.64680601,134.34,134.2,92.65044472]
[1767884814521,6.707,134.35,134.23,109.07184472]
[1767884814711,6.707,134.35,134.23,197.09184472]
[1767884814912,6.7076,134.34,134.23,92.67044472]
[1767884815112,0.30660601,134.34,134.23,88.02]
[1767884815825,0.30660601,134.33,134.23,88.02]
[1767884816512,7.01490601,134.33,134.24,6.7122]
[1767884817514,6.7073,134.35,134.25,6.7117]
[1767884817713,192.64520601,134.37,134.23,192.4397]
[1767884817918,104.62520601,134.37,134.24,104.4155]
[1767884818518,0.30660601,134.37,134.26,104.3999]
[1767884818719,0.30660601,134.37,134.25,104.4037]